[Event "Rapid della Domenica"]
[Site "Chess.com"]
[Date "2020.05.24"]
[Round "1"]
[White "OMatteoWuO"]
[Black "crippo"]
[Result "1/2-1/2"]
[WhiteElo "1229"]
[BlackElo "1553"]
[TimeControl "720+3"]
[EndTime "6:09:14 PDT"]
[Termination "Partita patta per ripetizione di mosse"]

1. d4 {[%clk 0:11:59.6]} 1... d5 {[%clk 0:11:59.6]} 2. c4 {[%clk 0:12:00.3]}
2... c6 {[%clk 0:12:01]} 3. Nc3 {[%clk 0:11:58.6]} 3... Nf6 {[%clk 0:12:03.1]}
4. Nf3 {[%clk 0:11:57.1]} 4... e6 {[%clk 0:12:04.9]} 5. Be3 {[%clk 0:11:54.9]}
5... Ne4 {[%clk 0:12:06.4]} 6. Nxe4 {[%clk 0:11:51.8]} 6... dxe4 {[%clk
0:12:06.4]} 7. Ne5 {[%clk 0:11:49.7]} 7... f5 {[%clk 0:12:07.6]} 8. h4 {[%clk
0:11:31.9]} 8... Bd6 {[%clk 0:12:08.8]} 9. Bg5 {[%clk 0:11:32.8]} 9... Qc7
{[%clk 0:12:06.1]} 10. Bf4 {[%clk 0:11:03.2]} 10... O-O {[%clk 0:12:04.3]} 11.
c5 {[%clk 0:10:57.3]} 11... Bxe5 {[%clk 0:12:04.6]} 12. Bxe5 {[%clk 0:10:57.4]}
12... Qa5+ {[%clk 0:12:06.1]} 13. Qd2 {[%clk 0:10:56.2]} 13... Qxd2+ {[%clk
0:12:07.9]} 14. Kxd2 {[%clk 0:10:57.5]} 14... Nd7 {[%clk 0:12:09.9]} 15. Bd6
{[%clk 0:10:49.5]} 15... Rf7 {[%clk 0:12:11.7]} 16. e3 {[%clk 0:10:50]} 16...
Nf6 {[%clk 0:12:12.5]} 17. Bc4 {[%clk 0:10:29.9]} 17... b6 {[%clk 0:12:08.5]}
18. b4 {[%clk 0:10:25.6]} 18... b5 {[%clk 0:12:06.9]} 19. Bb3 {[%clk 0:10:19.3]}
19... a5 {[%clk 0:12:08.1]} 20. a3 {[%clk 0:10:13.1]} 20... axb4 {[%clk
0:12:10]} 21. axb4 {[%clk 0:10:14.4]} 21... Rfa7 {[%clk 0:12:09.3]} 22. Rxa7
{[%clk 0:10:09.5]} 22... Rxa7 {[%clk 0:12:10.6]} 23. h5 {[%clk 0:09:50.1]} 23...
h6 {[%clk 0:12:11]} 24. f4 {[%clk 0:09:31.9]} 24... Ra3 {[%clk 0:12:04.7]} 25.
Kc3 {[%clk 0:09:27.8]} 25... Ng4 {[%clk 0:12:02.2]} 26. Re1 {[%clk 0:09:22.4]}
26... Kf7 {[%clk 0:11:57.3]} 27. Re2 {[%clk 0:09:11.1]} 27... Bd7 {[%clk
0:11:46.3]} 28. g3 {[%clk 0:08:59.2]} 28... Nf6 {[%clk 0:11:40.1]} 29. Ra2
{[%clk 0:08:50.1]} 29... Rxa2 {[%clk 0:11:40.1]} 30. Bxa2 {[%clk 0:08:51.3]}
30... Nd5+ {[%clk 0:11:39.6]} 31. Bxd5 {[%clk 0:08:43.1]} 31... exd5 {[%clk
0:11:41.5]} 32. Kd2 {[%clk 0:08:41.4]} 32... g6 {[%clk 0:11:43.5]} 33. hxg6+
{[%clk 0:08:39.3]} 33... Kxg6 {[%clk 0:11:44.9]} 34. Be7 {[%clk 0:08:37.8]}
34... Kh5 {[%clk 0:11:46.2]} 35. Bh4 {[%clk 0:08:39.3]} 35... Kg4 {[%clk
0:11:48.2]} 36. Ke2 {[%clk 0:08:39.9]} 36... Kh3 {[%clk 0:11:44.4]} 37. Kf2
{[%clk 0:08:40.6]} 37... Be8 {[%clk 0:11:45.8]} 38. Kg1 {[%clk 0:08:38.3]} 38...
Bh5 {[%clk 0:11:47.3]} 39. Kf2 {[%clk 0:08:40]} 39... Bf3 {[%clk 0:11:49.2]} 40.
Kg1 {[%clk 0:08:41.5]} 40... Kg4 {[%clk 0:11:44.1]} 41. Kf2 {[%clk 0:08:41.6]}
41... Kh5 {[%clk 0:11:45.4]} 42. Kg1 {[%clk 0:08:43.2]} 42... Kg6 {[%clk
0:11:47.3]} 43. Kf2 {[%clk 0:08:44.6]} 43... Kh5 {[%clk 0:11:47.8]} 44. Kg1
{[%clk 0:08:46.5]} 44... Kg4 {[%clk 0:11:41.7]} 45. Kh2 {[%clk 0:08:47.8]} 45...
Bd1 {[%clk 0:11:30.5]} 46. Kg2 {[%clk 0:08:46.9]} 46... Bf3+ {[%clk 0:11:32.4]}
47. Kh2 {[%clk 0:08:48.3]} 47... Be2 {[%clk 0:11:27.3]} 48. Kg2 {[%clk
0:08:48.9]} 48... Bf3+ {[%clk 0:11:29.2]} 49. Kh2 {[%clk 0:08:50.7]} 1/2-1/2

[Event "Rapid della Domenica"]
[Site "Chess.com"]
[Date "2020.05.24"]
[Round "1"]
[White "toninoiuorio"]
[Black "APipitone"]
[Result "1-0"]
[WhiteElo "1409"]
[BlackElo "1546"]
[TimeControl "720+3"]
[EndTime "6:14:30 PDT"]
[Termination "toninoiuorio ha vinto per abbandono"]

1. d4 {[%clk 0:12:02.2]} 1... Nf6 {[%clk 0:11:56.1]} 2. c4 {[%clk 0:12:03.9]}
2... d5 {[%clk 0:11:56]} 3. cxd5 {[%clk 0:12:03]} 3... Qxd5 {[%clk 0:11:53.3]}
4. Nc3 {[%clk 0:11:03.5]} 4... Nc6 {[%clk 0:11:56.2]} 5. Nxd5 {[%clk 0:10:53.7]}
5... Nxd5 {[%clk 0:11:51]} 6. e4 {[%clk 0:10:55]} 6... Nb6 {[%clk 0:11:42.2]} 7.
d5 {[%clk 0:10:52.8]} 7... Ne5 {[%clk 0:11:39.9]} 8. Bf4 {[%clk 0:10:54.5]} 8...
Ned7 {[%clk 0:11:24.5]} 9. Nf3 {[%clk 0:10:46.7]} 9... c6 {[%clk 0:11:10.2]} 10.
dxc6 {[%clk 0:10:42.9]} 10... bxc6 {[%clk 0:11:10.1]} 11. Be2 {[%clk 0:10:42.6]}
11... e5 {[%clk 0:11:07.4]} 12. Bd2 {[%clk 0:10:35.1]} 12... Bc5 {[%clk
0:10:58.3]} 13. O-O {[%clk 0:10:33.5]} 13... O-O {[%clk 0:10:57.3]} 14. Bc3
{[%clk 0:10:35.5]} 14... Bb7 {[%clk 0:10:49.2]} 15. Qc2 {[%clk 0:10:31]} 15...
Bd6 {[%clk 0:10:45.3]} 16. Rfd1 {[%clk 0:10:32]} 16... Bc7 {[%clk 0:10:40]} 17.
a4 {[%clk 0:10:33.5]} 17... a5 {[%clk 0:10:32.9]} 18. Rd2 {[%clk 0:10:21.3]}
18... Rfe8 {[%clk 0:09:57.2]} 19. Rad1 {[%clk 0:09:53.9]} 19... Nc5 {[%clk
0:09:48.5]} 20. b3 {[%clk 0:09:50.1]} 20... Ne6 {[%clk 0:09:01.1]} 21. Nxe5
{[%clk 0:09:34.7]} 21... Nf4 {[%clk 0:08:51.6]} 22. Nf3 {[%clk 0:09:35]} 22...
Nxe2+ {[%clk 0:08:44.6]} 23. Rxe2 {[%clk 0:09:36.5]} 23... c5 {[%clk 0:08:03.6]}
24. Bb2 {[%clk 0:09:17.6]} 24... Ba6 {[%clk 0:07:33.1]} 25. Ree1 {[%clk
0:09:09.7]} 25... c4 {[%clk 0:07:18]} 26. Qc3 {[%clk 0:09:06.1]} 26... f6 {[%clk
0:07:06.4]} 27. bxc4 {[%clk 0:09:05.3]} 27... Nxc4 {[%clk 0:06:51.7]} 28. Ba1
{[%clk 0:09:02.4]} 28... Bb6 {[%clk 0:06:15.5]} 29. e5 {[%clk 0:08:36.4]} 29...
fxe5 {[%clk 0:06:00.8]} 30. Nxe5 {[%clk 0:08:36.8]} 30... Nxe5 {[%clk
0:05:51.8]} 31. Rxe5 {[%clk 0:08:37.5]} 31... Rf8 {[%clk 0:05:02.2]} 32. Qb3+
{[%clk 0:08:33.1]} 1-0

[Event "Rapid della Domenica"]
[Site "Chess.com"]
[Date "2020.05.24"]
[Round "1"]
[White "laremaro"]
[Black "SanSecondoPR"]
[Result "1-0"]
[WhiteElo "1572"]
[BlackElo "1309"]
[TimeControl "720+3"]
[EndTime "6:18:14 PDT"]
[Termination "laremaro ha vinto per abbandono"]

1. b3 {[%clk 0:12:02.7]} 1... Nf6 {[%clk 0:11:57.8]} 2. Bb2 {[%clk 0:12:03.9]}
2... d5 {[%clk 0:11:58.2]} 3. e3 {[%clk 0:12:05.4]} 3... Nc6 {[%clk 0:11:52.6]}
4. Nf3 {[%clk 0:11:57.2]} 4... Bg4 {[%clk 0:11:48.1]} 5. d4 {[%clk 0:11:47.7]}
5... e6 {[%clk 0:11:41.4]} 6. a3 {[%clk 0:11:44.3]} 6... Bd6 {[%clk 0:11:36.3]}
7. Be2 {[%clk 0:11:41.1]} 7... Bf5 {[%clk 0:11:32.1]} 8. c4 {[%clk 0:11:35.2]}
8... O-O {[%clk 0:11:26.5]} 9. Nc3 {[%clk 0:11:28]} 9... Ne4 {[%clk 0:11:21.9]}
10. cxd5 {[%clk 0:11:15.9]} 10... Nxc3 {[%clk 0:11:19]} 11. Bxc3 {[%clk
0:11:15.9]} 11... Ne7 {[%clk 0:11:07.8]} 12. dxe6 {[%clk 0:10:59.3]} 12... Nd5
{[%clk 0:11:01.7]} 13. exf7+ {[%clk 0:10:55.5]} 13... Kh8 {[%clk 0:10:43.9]} 14.
Bb2 {[%clk 0:10:53.7]} 14... c6 {[%clk 0:10:30.9]} 15. O-O {[%clk 0:10:30.3]}
15... Bg6 {[%clk 0:10:27.7]} 16. Ne5 {[%clk 0:10:14.8]} 16... Qh4 {[%clk
0:09:50.4]} 17. g3 {[%clk 0:09:26.9]} 17... Qh6 {[%clk 0:09:43.7]} 18. Nxg6+
{[%clk 0:08:44.3]} 18... Qxg6 {[%clk 0:09:35.5]} 19. Bf3 {[%clk 0:08:29.7]}
19... Nf6 {[%clk 0:09:05.3]} 20. Re1 {[%clk 0:07:58.5]} 20... h5 {[%clk
0:09:02.5]} 21. e4 {[%clk 0:07:54.2]} 21... Bc7 {[%clk 0:08:44.8]} 22. e5 {[%clk
0:07:48.7]} 22... Ng4 {[%clk 0:08:33.8]} 23. Bxg4 {[%clk 0:07:35.9]} 23... hxg4
{[%clk 0:08:31.2]} 24. e6 {[%clk 0:07:35.8]} 24... Bd6 {[%clk 0:07:33.6]} 25.
Qe2 {[%clk 0:07:21.3]} 25... Be7 {[%clk 0:07:30.5]} 26. Qe4 {[%clk 0:07:16]}
26... Qg5 {[%clk 0:07:13.2]} 27. a4 {[%clk 0:07:05.9]} 27... Rad8 {[%clk
0:06:55.4]} 28. Ba3 {[%clk 0:06:37.9]} 28... Bxa3 {[%clk 0:06:20.9]} 29. Rxa3
{[%clk 0:06:36.2]} 29... Qe7 {[%clk 0:06:17.4]} 30. b4 {[%clk 0:06:20.9]} 30...
Rd5 {[%clk 0:05:46.5]} 31. Rd3 {[%clk 0:06:05.2]} 31... Rg5 {[%clk 0:05:15.3]}
32. d5 {[%clk 0:06:00.2]} 32... cxd5 {[%clk 0:04:52.8]} 33. Rxd5 {[%clk
0:05:59]} 33... Rxd5 {[%clk 0:04:31.2]} 34. Qxd5 {[%clk 0:05:56.3]} 34... Rxf7
{[%clk 0:04:26.9]} 35. Qh5+ {[%clk 0:05:57.5]} 35... Kg8 {[%clk 0:04:20.7]} 36.
Qxf7+ {[%clk 0:05:56.8]} 36... Qxf7 {[%clk 0:04:15.6]} 37. exf7+ {[%clk
0:05:58.5]} 37... Kxf7 {[%clk 0:04:16.2]} 38. Re4 {[%clk 0:05:57.2]} 1-0

[Event "Rapid della Domenica"]
[Site "Chess.com"]
[Date "2020.05.24"]
[Round "1"]
[White "Mrtre7"]
[Black "Carbon"]
[Result "0-1"]
[WhiteElo "1410"]
[BlackElo "1779"]
[TimeControl "720+3"]
[EndTime "6:24:51 PDT"]
[Termination "Carbon ha vinto per abbandono"]

1. d4 {[%clk 0:12:01.7]} 1... Nf6 {[%clk 0:12:00.6]} 2. c4 {[%clk 0:12:02.9]}
2... g6 {[%clk 0:12:02.2]} 3. Nc3 {[%clk 0:12:04.5]} 3... Bg7 {[%clk 0:12:03.8]}
4. e4 {[%clk 0:12:06.5]} 4... d6 {[%clk 0:12:05.8]} 5. Nf3 {[%clk 0:12:08]} 5...
O-O {[%clk 0:12:07.4]} 6. Be2 {[%clk 0:12:09.9]} 6... e5 {[%clk 0:12:04.2]} 7.
Be3 {[%clk 0:12:10]} 7... Ng4 {[%clk 0:12:03.9]} 8. Bg5 {[%clk 0:12:11.8]} 8...
f6 {[%clk 0:12:03.6]} 9. Bd2 {[%clk 0:11:29.6]} 9... Nc6 {[%clk 0:11:22.1]} 10.
d5 {[%clk 0:11:27.2]} 10... Ne7 {[%clk 0:11:21]} 11. h3 {[%clk 0:11:28.4]} 11...
Nh6 {[%clk 0:11:16.6]} 12. O-O {[%clk 0:11:29.6]} 12... f5 {[%clk 0:11:14.1]}
13. b4 {[%clk 0:11:16.5]} 13... fxe4 {[%clk 0:10:56.5]} 14. Nxe4 {[%clk
0:11:17.2]} 14... Nhf5 {[%clk 0:10:49.1]} 15. c5 {[%clk 0:09:53.9]} 15... Nd4
{[%clk 0:09:38.7]} 16. Nxd4 {[%clk 0:05:05.7]} 16... exd4 {[%clk 0:09:36.9]} 17.
Bd3 {[%clk 0:05:05.8]} 17... Bf5 {[%clk 0:07:39.9]} 18. cxd6 {[%clk 0:04:16]}
18... cxd6 {[%clk 0:07:35.8]} 19. Rc1 {[%clk 0:03:52]} 19... Kh8 {[%clk
0:06:49.1]} 20. Bf4 {[%clk 0:03:05.8]} 20... Bxe4 {[%clk 0:05:39]} 21. Bxd6
{[%clk 0:02:16.3]} 21... Qxd6 {[%clk 0:05:29.8]} 22. Bxe4 {[%clk 0:02:16.1]}
22... Nxd5 {[%clk 0:05:23.3]} 23. Rc5 {[%clk 0:02:07.6]} 23... Nxb4 {[%clk
0:04:47.1]} 24. Qc1 {[%clk 0:01:46.8]} 24... Nxa2 {[%clk 0:04:22.6]} 25. Qc4
{[%clk 0:01:36.4]} 25... Nc3 {[%clk 0:04:07.3]} 26. Rc1 {[%clk 0:00:45]} 26...
Nxe4 {[%clk 0:03:36.8]} 27. Rd5 {[%clk 0:00:42.6]} 27... Qf4 {[%clk 0:03:21]}
28. f3 {[%clk 0:00:27.1]} 28... Qe3+ {[%clk 0:02:59]} 29. Kh2 {[%clk 0:00:27.5]}
29... Nc3 {[%clk 0:02:38]} 30. Rf1 {[%clk 0:00:18.2]} 30... Nxd5 {[%clk
0:02:33]} 31. Qxd5 {[%clk 0:00:18.9]} 0-1

[Event "Rapid della Domenica"]
[Site "Chess.com"]
[Date "2020.05.24"]
[Round "1"]
[White "malberici"]
[Black "fausto2p"]
[Result "1-0"]
[WhiteElo "1472"]
[BlackElo "1197"]
[TimeControl "720+3"]
[EndTime "6:24:57 PDT"]
[Termination "malberici ha vinto per tempo"]

1. d4 {[%clk 0:12:00.8]} 1... d5 {[%clk 0:12:00.7]} 2. c4 {[%clk 0:12:02.7]}
2... c6 {[%clk 0:12:01.3]} 3. Nc3 {[%clk 0:12:03.1]} 3... Nf6 {[%clk 0:12:02]}
4. Nf3 {[%clk 0:11:58.4]} 4... dxc4 {[%clk 0:12:02.2]} 5. e3 {[%clk 0:11:51.1]}
5... b5 {[%clk 0:11:56.4]} 6. Ne5 {[%clk 0:11:41.3]} 6... e6 {[%clk 0:11:44.8]}
7. a3 {[%clk 0:11:39.9]} 7... Bd6 {[%clk 0:11:33.6]} 8. f4 {[%clk 0:11:24.3]}
8... Bb7 {[%clk 0:11:15.3]} 9. Qf3 {[%clk 0:11:23.6]} 9... Qc7 {[%clk
0:10:59.8]} 10. Qg3 {[%clk 0:11:05.1]} 10... O-O {[%clk 0:10:40.8]} 11. Be2
{[%clk 0:11:02.9]} 11... Nbd7 {[%clk 0:10:02.1]} 12. O-O {[%clk 0:10:58.1]}
12... a6 {[%clk 0:09:46.2]} 13. Bf3 {[%clk 0:10:29.4]} 13... Nb6 {[%clk
0:08:53.6]} 14. e4 {[%clk 0:09:56.1]} 14... c5 {[%clk 0:07:06.4]} 15. d5 {[%clk
0:09:18.8]} 15... exd5 {[%clk 0:07:05.8]} 16. Nxd5 {[%clk 0:09:06.9]} 16...
Nbxd5 {[%clk 0:07:03.1]} 17. exd5 {[%clk 0:09:08.2]} 17... Rfe8 {[%clk
0:05:36.5]} 18. Qf2 {[%clk 0:07:57.8]} 18... Bxd5 {[%clk 0:04:01.9]} 19. Bxd5
{[%clk 0:07:51.5]} 19... Nxd5 {[%clk 0:04:02.2]} 20. Bd2 {[%clk 0:07:28.7]}
20... Nf6 {[%clk 0:03:58.7]} 21. Bc3 {[%clk 0:07:23.4]} 21... Ne4 {[%clk
0:03:57.3]} 22. Qc2 {[%clk 0:06:54.4]} 22... Nxc3 {[%clk 0:03:45.4]} 23. bxc3
{[%clk 0:06:49.2]} 23... Bxe5 {[%clk 0:03:28.3]} 24. fxe5 {[%clk 0:06:45.5]}
24... Rxe5 {[%clk 0:03:25.3]} 25. Rad1 {[%clk 0:06:26.1]} 25... Rae8 {[%clk
0:03:23.2]} 26. Qf2 {[%clk 0:06:20.6]} 26... Re2 {[%clk 0:03:20.2]} 27. Qf5
{[%clk 0:06:11.9]} 27... R2e5 {[%clk 0:02:38.4]} 28. Qg4 {[%clk 0:05:59.3]}
28... Re4 {[%clk 0:01:22.8]} 29. Qf5 {[%clk 0:05:43.8]} 29... R4e7 {[%clk
0:01:17.9]} 30. Qh5 {[%clk 0:05:16.5]} 30... g6 {[%clk 0:01:13.7]} 31. Qh6
{[%clk 0:05:07.1]} 31... Qe5 {[%clk 0:01:06.5]} 32. Qh4 {[%clk 0:04:57.5]} 32...
Qe3+ {[%clk 0:01:02.4]} 33. Kh1 {[%clk 0:04:53.6]} 33... Qxc3 {[%clk 0:00:58.7]}
34. h3 {[%clk 0:04:37]} 34... Qxa3 {[%clk 0:00:57.7]} 35. Qf6 {[%clk 0:04:28.5]}
35... Qe3 {[%clk 0:00:53.2]} 36. Qxa6 {[%clk 0:04:14.4]} 36... Qb3 {[%clk
0:00:33.8]} 37. Rb1 {[%clk 0:04:04.8]} 37... Qa4 {[%clk 0:00:26.5]} 38. Qf6
{[%clk 0:03:59.9]} 38... b4 {[%clk 0:00:19.3]} 39. Rbd1 {[%clk 0:03:55]} 39...
b3 {[%clk 0:00:18]} 40. Rd8 {[%clk 0:03:54.8]} 40... Rxd8 {[%clk 0:00:12.9]} 41.
Qxe7 {[%clk 0:03:54]} 41... Rf8 {[%clk 0:00:11.9]} 42. Qxc5 {[%clk 0:03:52.6]}
1-0

[Event "Rapid della Domenica"]
[Site "Chess.com"]
[Date "2020.05.24"]
[Round "1"]
[White "pedrak"]
[Black "sirmale49"]
[Result "1-0"]
[WhiteElo "1692"]
[BlackElo "1390"]
[TimeControl "720+3"]
[EndTime "6:27:18 PDT"]
[Termination "pedrak ha vinto per tempo"]

1. b3 {[%clk 0:12:00.9]} 1... Nf6 {[%clk 0:11:59.1]} 2. Bb2 {[%clk 0:11:59.3]}
2... e6 {[%clk 0:12:01.1]} 3. e3 {[%clk 0:12:00.1]} 3... g6 {[%clk 0:12:03]} 4.
d3 {[%clk 0:11:53.9]} 4... Bg7 {[%clk 0:12:04.7]} 5. Nd2 {[%clk 0:11:55]} 5...
O-O {[%clk 0:12:06]} 6. g3 {[%clk 0:11:55]} 6... d5 {[%clk 0:12:07.5]} 7. Bg2
{[%clk 0:11:55.9]} 7... Nc6 {[%clk 0:12:08.7]} 8. Ne2 {[%clk 0:11:55.9]} 8...
Ne8 {[%clk 0:11:52.2]} 9. O-O {[%clk 0:11:53.4]} 9... Bxb2 {[%clk 0:11:52.8]}
10. Rb1 {[%clk 0:11:51]} 10... Bg7 {[%clk 0:11:54]} 11. f4 {[%clk 0:11:40.7]}
11... f5 {[%clk 0:11:46.6]} 12. Nf3 {[%clk 0:11:36.2]} 12... e5 {[%clk
0:11:39.2]} 13. Qd2 {[%clk 0:11:22.6]} 13... e4 {[%clk 0:10:55.5]} 14. Ng5
{[%clk 0:11:13.4]} 14... h6 {[%clk 0:10:51]} 15. Nh3 {[%clk 0:11:13.6]} 15...
Qf6 {[%clk 0:10:19.5]} 16. d4 {[%clk 0:10:58.7]} 16... Nd6 {[%clk 0:10:15]} 17.
Rfc1 {[%clk 0:10:34.9]} 17... b6 {[%clk 0:09:46.6]} 18. Nc3 {[%clk 0:09:59.6]}
18... Be6 {[%clk 0:09:28.7]} 19. Bf1 {[%clk 0:09:43.1]} 19... a6 {[%clk
0:09:22.7]} 20. a3 {[%clk 0:09:41.3]} 20... Qf7 {[%clk 0:09:08.4]} 21. Nd1
{[%clk 0:09:23.2]} 21... Rfb8 {[%clk 0:08:41]} 22. Nb2 {[%clk 0:09:11]} 22... b5
{[%clk 0:08:34.5]} 23. Nd1 {[%clk 0:08:46.2]} 23... Bf8 {[%clk 0:07:57.1]} 24.
Ra1 {[%clk 0:08:33.9]} 24... Nb7 {[%clk 0:07:33.2]} 25. Nb2 {[%clk 0:07:51.2]}
25... Na7 {[%clk 0:07:09.4]} 26. Nd1 {[%clk 0:07:44.2]} 26... Rc8 {[%clk
0:06:58.7]} 27. b4 {[%clk 0:07:23]} 27... c6 {[%clk 0:06:52.1]} 28. Nc3 {[%clk
0:07:15.1]} 28... Nd6 {[%clk 0:06:45.8]} 29. Nd1 {[%clk 0:06:57.9]} 29... Rc7
{[%clk 0:06:44.8]} 30. c3 {[%clk 0:06:52.4]} 30... Nc4 {[%clk 0:06:35.8]} 31.
Bxc4 {[%clk 0:06:37.2]} 31... dxc4 {[%clk 0:06:11.6]} 32. Kg2 {[%clk 0:06:36]}
32... Rd8 {[%clk 0:06:01.4]} 33. Qe2 {[%clk 0:06:31.5]} 33... Be7 {[%clk
0:05:45.7]} 34. Ndf2 {[%clk 0:06:30.7]} 34... Rd5 {[%clk 0:04:55.1]} 35. Rg1
{[%clk 0:06:14.9]} 35... Bf6 {[%clk 0:04:38.3]} 36. Rh1 {[%clk 0:06:11.2]} 36...
Qh7 {[%clk 0:04:11.6]} 37. Rhd1 {[%clk 0:05:59.1]} 37... Rg7 {[%clk 0:03:49.1]}
38. Rh1 {[%clk 0:05:30.6]} 38... g5 {[%clk 0:03:41.7]} 39. Kf1 {[%clk
0:05:29.3]} 39... g4 {[%clk 0:03:34.2]} 40. Ng1 {[%clk 0:05:29.9]} 40... Qg6
{[%clk 0:03:05.6]} 41. Qc2 {[%clk 0:05:21]} 41... Rdd7 {[%clk 0:02:51.3]} 42.
Ke2 {[%clk 0:05:21.1]} 42... Bd5 {[%clk 0:02:52.9]} 43. Kd2 {[%clk 0:05:11.3]}
43... h5 {[%clk 0:02:49.1]} 44. Ne2 {[%clk 0:05:08]} 44... Rh7 {[%clk 0:02:42]}
45. Rag1 {[%clk 0:04:57]} 45... h4 {[%clk 0:02:42]} 46. Kc1 {[%clk 0:04:56.1]}
46... h3 {[%clk 0:02:39.9]} 47. Kb2 {[%clk 0:04:56.6]} 47... Bd8 {[%clk
0:02:35.6]} 48. Ra1 {[%clk 0:04:57.1]} 48... Nc8 {[%clk 0:02:21.9]} 49. Ra2
{[%clk 0:04:52.6]} 49... Nb6 {[%clk 0:02:23.2]} 50. Raa1 {[%clk 0:04:35.7]}
50... Ra7 {[%clk 0:02:21.7]} 51. Rhb1 {[%clk 0:04:31.6]} 51... Na4+ {[%clk
0:02:18.8]} 52. Kc1 {[%clk 0:04:32.8]} 52... a5 {[%clk 0:02:13.9]} 53. Kd2
{[%clk 0:04:31.8]} 53... Rhb7 {[%clk 0:01:37.9]} 54. Nd1 {[%clk 0:04:25.2]}
54... Nb6 {[%clk 0:01:23.3]} 55. Nb2 {[%clk 0:04:02.9]} 55... Qf7 {[%clk
0:00:39.5]} 56. Ke1 {[%clk 0:03:58.2]} 56... axb4 {[%clk 0:00:37.6]} 57. axb4
{[%clk 0:03:57.4]} 57... Rxa1 {[%clk 0:00:38.9]} 58. Rxa1 {[%clk 0:03:58.2]}
58... Ra7 {[%clk 0:00:40.2]} 59. Rb1 {[%clk 0:03:57]} 59... Na4 {[%clk
0:00:32.6]} 60. Nd1 {[%clk 0:03:51.9]} 60... Ra6 {[%clk 0:00:19.2]} 61. Nc1
{[%clk 0:03:53]} 61... Qa7 {[%clk 0:00:18.5]} 62. Kf1 {[%clk 0:03:47.2]} 1-0

[Event "Rapid della Domenica"]
[Site "Chess.com"]
[Date "2020.05.24"]
[Round "2"]
[White "crippo"]
[Black "malberici"]
[Result "1-0"]
[WhiteElo "1561"]
[BlackElo "1454"]
[TimeControl "720+3"]
[EndTime "6:37:51 PDT"]
[Termination "crippo ha vinto per abbandono"]

1. e4 {[%clk 0:12:02.9]} 1... Nf6 {[%clk 0:12:02.2]} 2. Nc3 {[%clk 0:12:03.5]}
2... e5 {[%clk 0:12:03.7]} 3. d3 {[%clk 0:12:05.1]} 3... Bc5 {[%clk 0:12:05.3]}
4. Bg5 {[%clk 0:12:05.9]} 4... O-O {[%clk 0:12:01.5]} 5. Nf3 {[%clk 0:12:06.3]}
5... Nc6 {[%clk 0:12:00.7]} 6. Be2 {[%clk 0:12:07.2]} 6... d6 {[%clk 0:11:51.5]}
7. Nd5 {[%clk 0:12:07.6]} 7... Be6 {[%clk 0:11:30.8]} 8. Nxf6+ {[%clk
0:12:07.5]} 8... gxf6 {[%clk 0:11:30.8]} 9. Bh6 {[%clk 0:12:09.1]} 9... Re8
{[%clk 0:11:26.4]} 10. O-O {[%clk 0:12:10.3]} 10... d5 {[%clk 0:11:28.2]} 11.
Nd2 {[%clk 0:12:11.2]} 11... Bf8 {[%clk 0:11:28.3]} 12. Bxf8 {[%clk 0:12:06.7]}
12... Rxf8 {[%clk 0:11:29.5]} 13. Bg4 {[%clk 0:12:07.8]} 13... Kh8 {[%clk
0:11:28.5]} 14. Qf3 {[%clk 0:12:04.7]} 14... Rg8 {[%clk 0:11:25.4]} 15. Bxe6
{[%clk 0:12:04.8]} 15... fxe6 {[%clk 0:11:25.1]} 16. c3 {[%clk 0:12:06.8]} 16...
d4 {[%clk 0:11:18.5]} 17. Nb3 {[%clk 0:11:58.3]} 17... Qe7 {[%clk 0:11:08.6]}
18. a3 {[%clk 0:11:48.7]} 18... Rg6 {[%clk 0:11:01.3]} 19. g3 {[%clk 0:11:45]}
19... Rag8 {[%clk 0:10:50.5]} 20. cxd4 {[%clk 0:11:46]} 20... Nxd4 {[%clk
0:10:49.9]} 21. Nxd4 {[%clk 0:11:47.4]} 21... exd4 {[%clk 0:10:51]} 22. Rac1
{[%clk 0:11:48.2]} 22... c5 {[%clk 0:10:50.5]} 23. Rc4 {[%clk 0:11:48.3]} 23...
e5 {[%clk 0:10:44.5]} 24. Rfc1 {[%clk 0:11:49]} 24... b6 {[%clk 0:10:44.8]} 25.
a4 {[%clk 0:11:50.8]} 25... Qe6 {[%clk 0:10:43.8]} 26. b4 {[%clk 0:11:51.6]}
26... Qh3 {[%clk 0:10:31.2]} 27. bxc5 {[%clk 0:11:49.8]} 27... Rh6 {[%clk
0:10:32.4]} 28. Qg2 {[%clk 0:11:50]} 28... bxc5 {[%clk 0:10:30.5]} 29. Rxc5
{[%clk 0:11:51]} 29... Qe6 {[%clk 0:10:27.5]} 30. Qf3 {[%clk 0:11:34.3]} 30...
Qh3 {[%clk 0:10:24.1]} 31. Qg2 {[%clk 0:11:36.2]} 31... Qe6 {[%clk 0:10:25.7]}
32. Rd5 {[%clk 0:11:36.2]} 32... Qa6 {[%clk 0:10:18]} 33. Rc4 {[%clk 0:11:33.6]}
33... Qb7 {[%clk 0:10:11.3]} 34. Qf1 {[%clk 0:11:34.7]} 34... Rh4 {[%clk
0:09:54.5]} 35. Rb5 {[%clk 0:11:13.6]} 35... Qf7 {[%clk 0:09:47.8]} 36. Qg2
{[%clk 0:10:58.9]} 36... Rh6 {[%clk 0:09:37.5]} 37. Qf3 {[%clk 0:10:58.7]} 37...
Qh5 {[%clk 0:09:36.4]} 38. Qxh5 {[%clk 0:10:56.8]} 38... Rxh5 {[%clk 0:09:37.7]}
39. Rc6 {[%clk 0:10:57.7]} 39... Rg6 {[%clk 0:09:37.9]} 40. Rb7 {[%clk
0:10:56.7]} 40... Rg8 {[%clk 0:09:32.6]} 41. Rxa7 {[%clk 0:10:57.4]} 41... f5
{[%clk 0:09:31.3]} 42. exf5 {[%clk 0:10:58.6]} 42... Rxf5 {[%clk 0:09:16.6]} 43.
Rcc7 {[%clk 0:10:58.4]} 43... Rh5 {[%clk 0:09:15.9]} 44. a5 {[%clk 0:10:57.3]}
44... Rb8 {[%clk 0:08:48.7]} 45. a6 {[%clk 0:10:53]} 45... Kg8 {[%clk
0:08:46.7]} 46. Rab7 {[%clk 0:10:54.1]} 46... Ra8 {[%clk 0:08:45.8]} 47. a7
{[%clk 0:10:55.7]} 1-0